bitfinex-derivatives/quotes_SOLF0:USTF0_20241016
["timestamp","ask_amount","ask_price","bid_price","bid_amount"]
[1729117274491,109.91628817,154.57,154.52,8.97]
[1729117275491,3.2351,154.56,154.53,3.2356]
[1729117275691,109.91628817,154.57,154.53,3.2356]
[1729117276403,8.97,154.57,154.53,3.2356]
[1729117276603,12.205,154.57,154.53,3.2356]
[1729117277597,3.235,154.57,154.54,3.2354]
[1729117279096,69.88,154.69,154.53,8.97]
[1729117279298,8.97,154.6,154.56,3.235]
[1729117279501,8.97,154.6,154.56,6.406901]
[1729117279801,3.2345,154.59,154.56,6.406901]
[1729117285808,3.2344,154.6,154.57,3.2349]
[1729117286708,8.97,154.61,154.57,3.2349]
[1729117286898,3.2345,154.59,154.57,3.2349]
[1729117292709,3.2345,154.59,154.56,15.377001]
[1729117305817,3.2345,154.59,154.56,12.141901]
[1729117306018,3.2345,154.59,154.57,3.2349]
[1729117310931,3.2343,154.6,154.57,12.2048]
[1729117312730,3.2342,154.61,154.58,3.2346]
[1729117315032,3.2342,154.61,154.57,8.97]
[1729117315236,3.2339,154.62,154.59,3.2344]
[1729117316533,3.2341,154.61,154.59,3.2344]
[1729117318533,3.2344,154.6,154.57,3.2347]
[1729117333045,3.2344,154.6,154.57,12.2047]
[1729117337654,3.2344,154.6,154.57,3.2347]
[1729117341053,8.97,154.6,154.56,3.171901]
[1729117341351,8.97,154.6,154.55,4.6302]
[1729117341756,8.97,154.6,154.55,7.86532296]
[1729117342461,4.64,154.63,154.57,8.97]
[1729117342660,8.97,154.62,154.55,4.63012296]
[1729117342863,8.97,154.61,154.55,13.60012296]
[1729117343758,3.2349,154.58,154.55,13.60012296]
[1729117344153,3.2349,154.58,154.55,4.63012296]
[1729117344959,8.97,154.58,154.55,4.63012296]
[1729117345155,3.2355,154.55,154.52,3.2358]
[1729117345461,3.2355,154.55,154.51,8.97]
[1729117346060,3.2355,154.55,154.52,3.2359]
[1729117354667,8.97,154.56,154.5,4.1893]
[1729117354867,8.97,154.52,154.47,3.26493905]
[1729117355068,8.97,154.5,154.45,14.9516]
[1729117355362,12.2071,154.47,154.43,3.2377]
[1729117355562,8.97,154.48,154.43,3.2377]
[1729117355869,3.2366,154.49,154.45,3.2372]
[1729117356062,3.2366,154.49,154.46,3.262572]
[1729117356876,3.2368,154.48,154.46,3.262572]
[1729117361168,3.2368,154.48,154.45,3.2372]
[1729117361370,1.459,154.51,154.42,4.6]
[1729117361371,8.97,154.46,154.43,3.2377]
[1729117361872,12.2073,154.46,154.43,3.2377]
[1729117362774,4.6,154.48,154.41,3.2382]
[1729117362969,4.6,154.48,154.4,7.3379]
[1729117362970,8.97,154.43,154.4,7.3379]
[1729117363774,8.97,154.43,154.4,10.5762]
[1729117364774,12.2077,154.44,154.4,10.5762]
[1729117369479,12.2077,154.44,154.4,7.3379]
[1729117369684,12.2077,154.44,154.41,3.2382]
[1729117377291,3.2377,154.44,154.41,3.2382]
[1729117377590,8.97,154.43,154.41,3.2382]
[1729117381496,3.2373,154.46,154.42,3.2379]
[1729117381690,8.97,154.43,154.4,7.3379]
[1729117383392,8.97,154.43,154.41,3.2381]
[1729117390200,8.97,154.42,154.4,10.5762]
[1729117390495,8.97,154.42,154.4,2.7379]
[1729117391502,8.97,154.42,154.41,3.2382]
[1729117397102,8.97,154.43,154.41,3.2382]
[1729117400806,12.2071,154.47,154.44,3.2375]
[1729117401002,8.97,154.47,154.41,8.97]
[1729117401306,1.459,154.51,154.49,3.2364]
[1729117401307,8.97,154.51,154.49,3.2364]
[1729117401511,8.97,154.51,154.49,6.50445095]
[1729117401810,8.97,154.51,154.46,8.97]
[1729117402111,8.97,154.51,154.48,3.2367]
[1729117402505,100.97600227,154.52,154.46,12.13800857]
[1729117402703,109.94600227,154.52,154.49,3.2364]
[1729117405613,100.97600227,154.52,154.5,3.2362]
[1729117405802,100.97600227,154.52,154.48,8.97]
[1729117406609,100.97600227,154.52,154.5,3.2363]
[1729117410708,3.2362,154.51,154.48,3.2366]
[1729117410929,8.97,154.52,154.47,10.3365]
[1729117411113,8.97,154.53,154.48,8.97]
[1729117412418,3.236,154.52,154.49,3.2366]
[1729117414013,3.236,154.52,154.47,1.3665]
[1729117414214,3.236,154.52,154.48,3.2367]
[1729117415720,12.206,154.52,154.48,3.2367]
[1729117415922,12.2064,154.51,154.47,4.6034]
[1729117418618,12.2064,154.51,154.47,13.5734]
[1729117418619,3.2364,154.51,154.47,13.5734]
[1729117419518,3.2364,154.51,154.47,10.3365]
[1729117419718,3.2364,154.51,154.48,3.2368]
[1729117421625,7.8356,154.54,154.51,3.236]
[1729117421923,16.8056,154.54,154.49,8.97]
[1729117422622,16.8056,154.54,154.5,3.2363]
[1729117423127,16.8056,154.54,154.51,3.2361]
[1729117423628,3.2358,154.53,154.48,8.97]
[1729117423821,3.2358,154.53,154.5,3.2362]
[1729117424532,3.2358,154.53,154.51,3.2361]
[1729117436134,3.2361,154.51,154.49,3.2365]
[1729117439139,3.2361,154.51,154.48,12.2067]
[1729117439335,25.8989,154.6,154.48,8.97]
[1729117439638,4.6,154.59,154.49,8.97]
[1729117439933,8.97,154.56,154.49,8.97]
[1729117440429,3.2358,154.53,154.5,3.2362]
[1729117441128,8.97,154.56,154.49,8.97]
[1729117441328,4.6,154.55,154.49,8.97]
[1729117441735,3.2359,154.53,154.5,3.2362]
[1729117448442,8.97,154.51,154.46,3.16800857]
[1729117448650,8.97,154.51,154.44,8.97]
[1729117448651,8.97,154.5,154.44,8.97]
[1729117449050,3.2369,154.48,154.45,3.2373]
[1729117449247,3.2369,154.48,154.45,6.47548786]
[1729117449547,3.2369,154.48,154.45,3.2373]
[1729117449946,3.2369,154.48,154.45,6.49328899]
[1729117450137,12.2069,154.48,154.44,3.2375]
[1729117450341,3.237,154.47,154.44,3.2375]
[1729117451383,12.2068,154.48,154.44,3.2375]
[1729117452677,12.2068,154.48,154.45,3.2374]
[1729117452876,12.2068,154.48,154.45,6.52617524]
[1729117453071,12.2068,154.48,154.45,3.2374]
[1729117453569,12.2068,154.48,154.45,6.50351859]
[1729117456755,12.2068,154.48,154.45,6.50351859]
[1729117460356,8.97,154.48,154.45,6.50351859]
[1729117462956,4.6,154.51,154.45,3.26611859]
[1729117463161,13.57,154.51,154.46,8.97]
[1729117464459,3.2366,154.49,154.46,12.2071]
[1729117471764,3.2366,154.49,154.46,3.2371]
[1729117488780,3.236,154.52,154.49,3.2364]
[1729117488975,14.9732,154.53,154.49,3.2364]
[1729117489375,3.2361,154.52,154.49,3.2364]
[1729117491370,3.2362,154.51,154.49,3.2364]
[1729117499086,3.2362,154.51,154.48,3.2367]
[1729117500485,3.2365,154.5,154.47,3.2369]
[1729117501087,8.97,154.5,154.45,3.18228349]
[1729117501286,3.2369,154.48,154.45,3.2374]
[1729117501479,3.2369,154.48,154.45,6.43039288]
[1729117502286,8.97,154.46,154.42,66.20016533]
[1729117502488,8.97,154.45,154.42,66.20016533]
[1729117503094,12.2076,154.45,154.42,66.20016533]
[1729117503298,8.97,154.45,154.42,66.20016533]
[1729117504491,8.97,154.45,154.39,16.7885]
[1729117504693,8.97,154.43,154.39,7.8185]
[1729117504896,8.97,154.43,154.39,3.2385]
[1729117505395,12.2079,154.43,154.39,3.2385]
[1729117506394,8.97,154.42,154.39,3.2385]
[1729117507798,3.2384,154.41,154.38,4.5759]
[1729117509890,12.2084,154.41,154.38,4.5759]
[1729117520201,3.2384,154.41,154.38,4.5759]
[1729117520803,1.3344,154.47,154.4,8.97]
[1729117521009,12.2076,154.44,154.4,3.2383]
[1729117522802,1.3344,154.47,154.4,8.97]
[1729117523006,19.43,154.54,154.44,8.97]
[1729117523208,7.3553,154.53,154.45,8.97]
[1729117523507,8.97,154.52,154.47,8.97]
[1729117523898,8.97,154.52,154.47,12.16594638]
[1729117525305,12.2061,154.52,154.48,3.2367]
[1729117526907,3.2356,154.54,154.51,8.97]
[1729117527108,8.97,154.59,154.53,8.97]
[1729117527309,8.97,154.59,154.54,8.97]
[1729117527505,3.2348,154.58,154.54,12.2054]
[1729117527709,12.2048,154.58,154.54,12.2054]
[1729117528218,8.97,154.56,154.51,8.97]
[1729117528512,8.97,154.52,154.49,7.77902537]
[1729117528817,8.97,154.52,154.49,7.8164]
[1729117529210,8.97,154.52,154.5,3.21197165]
[1729117529610,8.97,154.52,154.49,7.8164]
[1729117530010,8.97,154.52,154.49,11.08232324]
[1729117532518,12.206,154.52,154.49,7.84592324]
[1729117535819,12.206,154.52,154.49,3.26592324]
[1729117536123,8.97,154.52,154.48,4.58]
[1729117536318,12.2057,154.54,154.5,3.2362]
[1729117540720,3.2353,154.56,154.53,8.97]
[1729117540926,1.4302,154.58,154.54,8.97]
[1729117541615,10.4002,154.58,154.53,13.55]
[1729117541918,13.635,154.58,154.55,3.2353]
[1729117543328,13.635,154.58,154.54,3.2354]
[1729117546431,10.4002,154.58,154.5,67.53860789]
[1729117546623,3.2352,154.56,154.51,13.55]
[1729117546820,3.2352,154.56,154.52,8.97]
[1729117547227,3.2352,154.56,154.52,12.2058]
[1729117552234,3.2355,154.55,154.51,12.2061]
[1729117552440,8.97,154.56,154.52,4.58]
[1729117552733,3.2356,154.54,154.51,8.97]
[1729117552934,8.97,154.54,154.5,70.75740789]
[1729117553939,3.2358,154.53,154.5,70.75740789]
[1729117555135,3.2358,154.53,154.5,66.17740789]
[1729117559737,8.97,154.54,154.48,3.21911434]
[1729117559941,3.2366,154.49,154.47,4.58]
[1729117560140,8.97,154.5,154.46,1.3273]
[1729117560439,8.97,154.5,154.47,3.3097207]
[1729117560648,3.2367,154.49,154.47,3.3097207]
[1729117560943,12.2067,154.49,154.47,3.3097207]
[1729117562442,1.4409,154.57,154.46,1.3273]
[1729117562443,1.4409,154.57,154.48,8.97]
[1729117562640,8.97,154.58,154.53,8.97]
[1729117562839,8.97,154.58,154.54,3.31251971]
[1729117563244,8.97,154.58,154.53,8.97]
[1729117563446,4.96,154.62,154.53,8.97]
[1729117563746,12.2046,154.59,154.54,3.2353]
[1729117563943,12.2046,154.59,154.54,12.22976021]
[1729117565652,3.2347,154.58,154.54,12.22976021]
[1729117566845,12.2045,154.59,154.55,3.2353]
[1729117567152,8.97,154.56,154.49,1.4082]
[1729117567339,8.97,154.54,154.49,15.3382]
[1729117567540,8.97,154.56,154.5,8.97]
[1729117567738,8.97,154.56,154.52,8.97]
[1729117567943,8.97,154.57,154.52,8.97]
[1729117568442,3.2353,154.56,154.52,12.2059]
[1729117577351,12.2053,154.56,154.52,12.2059]
[1729117579055,3.2353,154.55,154.52,12.2059]
[1729117579856,3.2353,154.55,154.52,8.97]
[1729117589864,3.2351,154.57,154.53,12.2057]
[1729117590053,3.2351,154.57,154.54,1.3321]
[1729117590257,3.2351,154.57,154.55,3.15516212]
[1729117590755,8.97,154.59,154.55,3.15516212]
[1729117590957,3.2351,154.56,154.55,3.15516212]
[1729117591162,4.96,154.6,154.55,3.15516212]
[1729117591456,3.2348,154.58,154.55,12.15019505]
[1729117591655,8.97,154.6,154.55,12.2052]
[1729117592257,8.97,154.6,154.55,15.48019585]
[1729117593054,3.2349,154.57,154.55,3.27499585]
[1729117593456,8.97,154.57,154.54,1.3321]
[1729117593758,3.2353,154.56,154.54,1.3321]
[1729117593960,3.2353,154.56,154.54,4.57118155]
[1729117594966,8.97,154.57,154.54,4.57118155]
[1729117594967,3.2353,154.55,154.54,4.57118155]
[1729117596060,3.2352,154.56,154.54,4.57118155]
[1729117599867,3.2357,154.54,154.51,3.2361]
[1729117600262,8.97,154.54,154.49,15.3382]
[1729117601361,3.236,154.52,154.49,18.5746]
[1729117601564,8.97,154.54,154.5,8.97]
[1729117601761,2.7305,154.59,154.5,8.97]
[1729117601762,8.97,154.55,154.5,8.97]
[1729117602561,3.2358,154.53,154.5,8.97]
[1729117603464,3.2358,154.53,154.5,12.2064]
[1729117603962,3.2358,154.53,154.49,6.3682]
[1729117604168,8.97,154.53,154.49,4.96]
[1729117604970,8.97,154.52,154.49,4.96]
[1729117605170,8.97,154.52,154.48,1.3246]
[1729117605368,3.2369,154.48,154.45,1.3763]
[1729117607374,3.2369,154.48,154.45,4.6137]
[1729117609876,8.97,154.49,154.45,1.3763]
[1729117610178,3.2369,154.48,154.44,17.1675]
[1729117610975,3.2369,154.48,154.44,20.44915904]
[1729117611676,3.2369,154.48,154.45,3.2374]
[1729117613074,4.96,154.56,154.45,8.97]
[1729117613275,8.97,154.51,154.47,3.2368]
[1729117613778,3.2364,154.5,154.47,3.2368]
[1729117614176,3.2364,154.5,154.48,3.2368]
[1729117618693,3.2364,154.5,154.46,3.237]
[1729117619191,3.2367,154.49,154.46,3.237]
[1729117625290,3.2365,154.5,154.47,3.237]
[1729117625696,3.2365,154.5,154.48,8.97]
[1729117625896,3.236,154.52,154.49,3.2364]
[1729117626698,8.97,154.53,154.48,13.83]
[1729117626996,3.2358,154.53,154.5,3.2362]
[1729117627399,3.2356,154.54,154.52,3.2359]
[1729117627699,3.2356,154.54,154.53,3.20117806]
[1729117627898,3.2356,154.54,154.51,3.2361]
[1729117630394,8.97,154.57,154.51,3.2361]
[1729117630597,3.2357,154.53,154.51,3.2361]
[1729117632895,3.2357,154.53,154.52,3.19678635]
[1729117637003,3.2357,154.53,154.5,13.5718]
[1729117644109,3.2357,154.53,154.5,4.6018]
[1729117644310,3.2357,154.53,154.5,18.4318]
[1729117644506,8.97,154.51,154.44,3.28165904]
[1729117644711,8.97,154.51,154.46,8.97]
[1729117645003,4.86,154.55,154.47,3.21058762]
[1729117645004,8.97,154.5,154.47,3.21058762]
[1729117645206,3.237,154.47,154.44,3.2375]
[1729117645405,8.97,154.49,154.45,4.86]
[1729117645800,3.2368,154.48,154.45,4.86]
[1729117646002,8.97,154.49,154.45,4.86]
[1729117647511,3.2371,154.47,154.45,4.86]
[1729117651115,2.661,154.54,154.45,4.86]
[1729117651308,8.97,154.5,154.45,4.86]
[1729117651708,3.2369,154.48,154.45,8.0973]
[1729117654714,8.97,154.5,154.45,4.86]
[1729117655513,3.237,154.47,154.45,4.86]
[1729117656713,3.237,154.47,154.44,8.97]
[1729117657013,3.237,154.47,154.45,3.2374]
[1729117658311,3.2368,154.48,154.45,3.2374]
[1729117658707,3.2359,154.53,154.47,8.97]
[1729117658910,100.94635807,154.55,154.51,8.97]
[1729117659415,100.94635807,154.55,154.51,12.21637587]
[1729117659918,3.2359,154.52,154.51,12.21637587]
[1729117661511,3.2359,154.52,154.51,3.24637587]
[1729117661718,3.2359,154.52,154.49,16.9465]
[1729117671425,3.2359,154.52,154.49,7.9765]
[1729117671628,3.2359,154.52,154.49,16.9465]
[1729117675829,109.91635807,154.55,154.49,16.9465]
[1729117676024,3.2364,154.5,154.48,3.2367]
[1729117676224,8.97,154.49,154.43,16.22097964]
[1729117676431,8.97,154.49,154.44,4.74]
[1729117676727,3.2371,154.47,154.44,7.9775]
[1729117677933,3.2371,154.47,154.45,8.97]
[1729117684637,3.2371,154.47,154.44,7.9775]
[1729117684638,2.7978,154.54,154.46,8.97]
[1729117684843,8.97,154.53,154.48,8.97]
[1729117685737,3.2366,154.5,154.48,8.97]
[1729117686138,3.2366,154.49,154.47,12.207]
[1729117690043,8.97,154.52,154.47,12.207]
[1729117690242,3.2366,154.5,154.47,12.207]
[1729117691039,8.97,154.52,154.47,12.207]
[1729117691343,3.2366,154.49,154.47,12.207]
[1729117700952,3.2366,154.49,154.47,8.97]
[1729117706549,3.2374,154.46,154.44,3.2376]
[1729117706750,8.97,154.47,154.44,4.64]
[1729117707151,3.2372,154.46,154.44,4.64]
[1729117708248,8.97,154.47,154.43,4.49607964]
[1729117708444,8.97,154.44,154.4,70.84173223]
[1729117708659,8.97,154.44,154.4,74.07634063]
[1729117709450,8.97,154.44,154.4,77.31474063]
[1729117709451,3.2379,154.43,154.4,77.31474063]
[1729117711760,3.2382,154.42,154.4,74.07634063]
[1729117712765,4.64,154.5,154.4,74.07634063]
[1729117713060,3.2379,154.43,154.4,77.31474063]
[1729117713557,3.2379,154.43,154.4,11.1130084]
[1729117714058,8.97,154.45,154.4,7.8746084]
[1729117714263,3.2381,154.42,154.4,7.8746084]
[1729117714962,8.97,154.43,154.4,3.2346084]
[1729117715164,3.238,154.42,154.39,7.8386]
[1729117715559,3.238,154.42,154.39,11.0658374]
[1729117716165,3.2384,154.41,154.39,7.8272374]
[1729117716458,3.2384,154.41,154.39,3.2272374]
[1729117716762,3.2384,154.41,154.38,16.8087]
[1729117717865,3.2384,154.41,154.39,8.97]
[1729117718068,3.2378,154.44,154.41,3.2382]
[1729117721166,4.6,154.46,154.4,4.6]
[1729117721368,3.238,154.43,154.4,7.8384]
[1729117721568,3.238,154.43,154.4,16.8084]
[1729117723261,3.238,154.43,154.4,7.8384]
[1729117725157,3.238,154.43,154.4,3.2384]
[1729117739485,3.2376,154.44,154.41,3.2381]
[1729117740483,13.57,154.46,154.41,3.2381]
[1729117740484,3.2378,154.43,154.41,3.2381]
[1729117744086,3.2377,154.44,154.42,3.238]
[1729117744288,1.42,154.49,154.42,8.97]
[1729117744289,4.6,154.49,154.42,8.97]
[1729117744484,8.97,154.48,154.39,9.21384745]
[1729117744680,100.98299818,154.5,154.44,8.97]
[1729117744880,100.98299818,154.5,154.48,8.97]
[1729117745186,100.98299818,154.5,154.48,12.28607333]
[1729117746389,100.98299818,154.5,154.48,15.52277333]
[1729117751386,100.98299818,154.5,154.48,6.55277333]
[1729117751578,100.98299818,154.5,154.47,8.97]
[1729117751579,100.98299818,154.5,154.46,1.3558]
[1729117751783,3.2369,154.48,154.46,1.3558]
[1729117752285,3.2369,154.48,154.47,3.23342791]
[1729117753290,3.2369,154.48,154.46,1.3558]
[1729117754492,3.2369,154.48,154.46,10.3258]
[1729117756588,100.98299818,154.5,154.46,10.3258]
[1729117757492,3.237,154.48,154.46,10.3258]
[1729117759295,3.237,154.48,154.47,3.28683823]
[1729117772701,6.4695,154.58,154.46,10.3258]
[1729117772897,4.6,154.57,154.52,8.97]
[1729117773093,8.97,154.58,154.52,8.97]
[1729117773301,4.6,154.57,154.52,8.97]
[1729117774503,8.97,154.56,154.51,3.31467633]
[1729117774706,8.97,154.56,154.5,8.97]
[1729117775307,8.97,154.56,154.51,3.31133113]
[1729117776607,3.2361,154.52,154.51,3.31133113]
[1729117778207,3.2361,154.52,154.51,8.97]
[1729117778405,3.2361,154.52,154.51,12.18490762]
[1729117784715,3.2359,154.53,154.51,12.18490762]
[1729117784901,13.57,154.57,154.51,12.18490762]
[1729117784902,114.50012276,154.57,154.51,12.18490762]
[1729117786611,3.2359,154.52,154.51,12.18490762]
[1729117788723,3.2359,154.52,154.5,3.2362]
[1729117788724,3.2361,154.51,154.5,8.97]
[1729117789112,8.97,154.53,154.48,16.8067]
[1729117789308,3.2361,154.51,154.48,16.8067]
[1729117789917,3.2361,154.51,154.48,20.03843451]
[1729117793723,3.2362,154.51,154.5,8.97]
[1729117795321,8.97,154.56,154.5,8.97]
[1729117795624,3.2361,154.52,154.5,8.97]
[1729117798816,3.2361,154.52,154.51,8.97]
[1729117822139,100.93012276,154.57,154.51,8.97]
[1729117822343,100.93012276,154.57,154.55,8.97]
[1729117823339,109.90012276,154.57,154.52,10.4107]
[1729117824242,8.97,154.56,154.52,10.4107]
[1729117824539,3.2357,154.53,154.52,10.4107]
[1729117826032,8.97,154.55,154.5,8.97]
[1729117826234,3.236,154.52,154.5,8.97]
[1729117827039,3.236,154.52,154.49,4.6]
[1729117827040,3.236,154.52,154.51,8.97]
[1729117828144,8.97,154.56,154.51,8.97]
[1729117828343,3.2356,154.54,154.53,8.97]
[1729117830344,100.93012276,154.57,154.53,8.97]
[1729117830648,3.2354,154.55,154.53,8.97]
[1729117831042,3.2359,154.52,154.51,1.4397]
[1729117836545,3.2359,154.52,154.51,10.4097]
[1729117840955,3.2359,154.52,154.51,1.4397]
[1729117857665,3.2358,154.53,154.51,4.6758]
[1729117857865,3.2358,154.53,154.51,1.4397]
[1729117858777,3.2359,154.52,154.51,1.4397]
[1729117860879,3.2355,154.55,154.53,3.2357]
[1729117861180,3.2355,154.55,154.54,8.97]
[1729117870879,3.2355,154.55,154.53,12.2057]
[1729117873485,3.2355,154.55,154.54,8.97]
[1729117879885,3.2355,154.55,154.53,3.2357]
[1729117880085,3.2355,154.55,154.54,8.97]
[1729117906914,3.2355,154.55,154.53,3.2357]
[1729117907106,4.6,154.6,154.54,8.97]
[1729117907413,4.6,154.6,154.56,8.97]
[1729117908120,4.6,154.6,154.56,12.20175465]
[1729117908504,3.2349,154.57,154.56,12.20175465]
[1729117909711,3.2354,154.55,154.53,8.97]
[1729117909913,8.97,154.59,154.54,8.97]
[1729117910308,3.2352,154.56,154.54,8.97]
[1729117931320,3.2347,154.58,154.55,3.2352]
[1729117931620,109.86867735,154.61,154.51,1.4397]
[1729117931926,3.2359,154.53,154.51,6.0197]
[1729117932820,3.2359,154.53,154.51,9.2558]
[1729117934620,3.2356,154.54,154.51,9.2558]
[1729117935519,3.2356,154.54,154.52,8.97]
[1729117940432,3.2356,154.54,154.51,13.6458]
[1729117942627,8.97,154.55,154.51,1.4397]
[1729117942830,8.97,154.52,154.44,4.85494242]
[1729117943131,8.97,154.46,154.41,13.55]
[1729117943631,8.97,154.45,154.41,3.16248537]
[1729117943832,4.58,154.51,154.41,8.97]
[1729117944133,8.97,154.47,154.41,12.15513696]
[1729117944827,8.97,154.47,154.43,3.2377]
[1729117945031,8.97,154.47,154.43,8.97]
[1729117945220,8.97,154.49,154.44,8.97]
[1729117946434,3.237,154.47,154.44,12.2075]
[1729117949133,4.58,154.51,154.45,8.97]
[1729117949435,8.97,154.52,154.46,8.97]
[1729117949635,3.2365,154.5,154.47,3.237]
[1729117953535,8.97,154.5,154.46,12.2071]
[1729117954041,3.2368,154.48,154.45,1.4519]
[1729117957745,3.2368,154.48,154.45,4.6893]
[1729117957941,3.2372,154.46,154.45,1.4519]
[1729117958146,8.97,154.5,154.45,1.4519]
[1729117958746,3.2371,154.47,154.45,1.4519]
[1729117959646,3.2371,154.47,154.45,10.4219]
[1729117960241,8.97,154.5,154.45,10.4219]
[1729117960442,3.2369,154.48,154.45,13.6591]
[1729117961338,89.80112445,154.86,154.45,10.4219]
[1729117961538,89.80112445,154.86,154.49,8.97]
[1729117961539,69.88,154.57,154.49,8.97]
[1729117961736,8.97,154.55,154.49,12.14860487]
[1729117962250,8.97,154.55,154.49,15.38500487]
[1729117963443,3.236,154.52,154.49,15.38500487]
[1729117964049,8.97,154.55,154.5,8.97]
[1729117964348,4.58,154.56,154.51,8.97]
[1729117964648,4.58,154.56,154.53,8.97]
[1729117964842,3.2353,154.55,154.53,8.97]
[1729117974653,3.235,154.57,154.54,12.2055]
[1729117974851,4.58,154.58,154.53,1.3328]
[1729117975052,13.55,154.58,154.53,10.3028]
[1729117975556,13.55,154.58,154.53,13.48849543]
[1729117975557,3.2353,154.55,154.53,13.48849543]
[1729117976748,3.2353,154.55,154.53,16.72419543]
[1729117979653,3.2353,154.55,154.54,8.97]
[1729117980864,4.58,154.58,154.54,8.97]
[1729117981155,2.7445,154.64,154.53,4.51849543]
[1729117981156,13.55,154.62,154.57,8.97]
[1729117981464,3.2343,154.6,154.58,8.97]
[1729117984255,3.2343,154.6,154.57,3.2348]
[1729117984460,3.2343,154.6,154.57,12.2048]
[1729117985362,3.2343,154.6,154.57,8.97]
[1729117986355,13.55,154.62,154.57,8.97]
[1729117986560,3.2345,154.59,154.57,8.97]
[1729118002072,3.2345,154.59,154.58,8.97]
[1729118011276,4.58,154.63,154.58,8.97]
[1729118011582,104.13277735,154.61,154.6,8.97]
[1729118012077,1.3553,154.69,154.6,8.97]
[1729118012286,256.04624695,154.77,154.59,4.58]
[1729118012287,6.4623,154.76,154.59,4.58]
[1729118012477,8.97,154.73,154.67,8.97]
[1729118012782,8.97,154.73,154.67,12.19304159]
[1729118012985,73.12573517,154.79,154.6,70.26349084]
[1729118012986,4.58,154.84,154.72,8.97]
[1729118013190,4.58,154.84,154.72,4.58]
[1729118013191,2.715,154.83,154.72,4.58]
[1729118013381,2.715,154.83,154.77,8.97]
[1729118013579,8.97,154.82,154.77,12.15164176]
[1729118014279,11.685,154.83,154.78,8.97]
[1729118014677,11.685,154.83,154.72,4.58]
[1729118014678,8.97,154.82,154.77,3.24361996]
[1729118014883,3.2304,154.79,154.76,8.97]
[1729118015088,8.97,154.81,154.76,8.97]
[1729118015287,8.97,154.77,154.69,4.47060721]
[1729118015592,8.97,154.75,154.7,13.55]
[1729118015795,8.97,154.75,154.7,8.97]
[1729118016486,3.2314,154.74,154.7,8.97]
[1729118017484,3.2314,154.74,154.7,13.55]
[1729118019386,8.97,154.74,154.7,4.58]
[1729118019596,4.58,154.8,154.7,4.58]
[1729118019801,8.97,154.75,154.7,4.58]
[1729118020481,3.2317,154.73,154.7,4.58]
[1729118021092,3.2317,154.73,154.69,15.00625508]
[1729118021297,3.2317,154.73,154.7,4.58]
[1729118021691,3.2317,154.73,154.71,8.97]
[1729118021893,8.97,154.75,154.71,8.97]
[1729118022494,3.2317,154.73,154.71,8.97]
[1729118022689,8.97,154.75,154.71,8.97]
[1729118022890,8.97,154.75,154.69,19.58625508]
[1729118023091,3.2318,154.72,154.69,19.58625508]
[1729118025499,3.2318,154.72,154.69,18.17345508]
[1729118025694,3.232,154.71,154.69,18.17345508]